fUST/lending_fUST_20240122
["ID","MTS","AMOUNT","RATE_DAILY","PERIOD"]
[312471333,1705913822820,-500.0,0.0004,31]
[312471334,1705913822850,-1047.38,0.0004,31]
[312471335,1705913822881,-500.0,0.0004,31]
[312471336,1705913822909,-500.0,0.0004,31]
[312471337,1705913822939,-500.0,0.0004,31]
[312471338,1705913822967,-500.0,0.0004,31]
[312471339,1705913823001,-564.89,0.0004,31]
[312471340,1705913823031,-1337.29,0.0004,31]
[312471341,1705913823061,-500.0,0.0004,31]
[312471342,1705913823088,-474.59152718,0.0004,31]
[312471343,1705913823118,-500.0,0.0004,31]
[312471344,1705913823145,-531.10977885,0.0004,31]
[312471345,1705913823172,-500.0,0.0004,31]
[312471346,1705913823198,-529.64693721,0.0004,31]
[312471347,1705913823224,-1126.09,0.0004,31]
[312471348,1705913823251,-500.0,0.0004,31]
[312471349,1705913823275,-662.16,0.0004,31]
[312471350,1705913823300,-500.0,0.0004,31]
[312471351,1705913823325,-1014.23,0.0004,31]
[312471352,1705913823460,-1114.79,0.0004,31]
[312471353,1705913823485,-500.0,0.0004,31]
[312471354,1705913823512,-500.0,0.0004,31]
[312471355,1705913823537,-2330.07,0.0004,31]
[312471356,1705913823560,-500.0,0.0004,31]
[312471357,1705913823584,-247.18068353,0.0004,31]
[312471358,1705913823609,-6634.5,0.0004,31]
[312471359,1705913823633,-949.36,0.0004,31]
[312471360,1705913823657,-1962.09,0.0004,31]
[312471361,1705913823682,-500.0,0.0004,31]
[312471362,1705913823707,-1340.33,0.0004,31]
[312471363,1705913823734,-2749.12,0.0004,31]
[312471364,1705913823761,-6849.76,0.0004,31]
[312471365,1705913823786,-500.0,0.0004,31]
[312471366,1705913823811,-1551.82,0.0004,31]
[312471367,1705913823836,-5781.2,0.0004,31]
[312471368,1705913823861,-2019.03,0.0004,31]
[312471369,1705913823886,-6915.52,0.0004,31]
[312471370,1705913823910,-2081.27,0.0004,31]
[312471371,1705913823935,-539.18,0.0004,31]
[312471372,1705913823959,-1825.15,0.0004,31]
[312471373,1705913823984,-741.59,0.0004,31]
[312471374,1705913824011,-500.0,0.0004,31]
[312471375,1705913824036,-1295.04,0.0004,31]
[312471376,1705913824061,-1269.8,0.0004,31]
[312471377,1705913824086,-500.0,0.0004,31]
[312471378,1705913824110,-1732.72,0.0004,31]
[312471379,1705913824134,-150.0,0.0004,31]
[312471380,1705913824158,-1393.86,0.0004,31]
[312471381,1705913824182,-1409.98,0.0004,31]
[312471382,1705913824206,-571.3,0.0004,31]
[312471383,1705913824230,-500.0,0.0004,31]
[312471384,1705913824257,-500.0,0.0004,31]
[312471385,1705913824281,-567.11,0.0004,31]
[312471386,1705913824306,-638.47,0.0004,31]
[312471387,1705913824330,-2018.02,0.0004,31]
[312471388,1705913824354,-2040.77,0.0004,31]
[312471389,1705913824378,-500.0,0.0004,31]
[312471390,1705913824401,-500.0,0.0004,31]
[312471391,1705913824425,-4772.99,0.0004,31]
[312471392,1705913824449,-1774.13,0.0004,31]
[312471393,1705913824474,-14310.79,0.0004,31]
[312471394,1705913824499,-604.97,0.0004,31]
[312471395,1705913824523,-500.0,0.00040273,31]
[312471396,1705913824547,-500.0,0.00040273,31]
[312471397,1705913824571,-500.0,0.00040273,31]
[312471398,1705913824594,-500.0,0.00040273,31]
[312471399,1705913824618,-500.0,0.00040273,31]
[312471400,1705913824642,-1114.81,0.00040273,31]
[312471401,1705913824665,-500.0,0.00040273,31]
[312471402,1705913824689,-768.35,0.00040273,31]
[312471403,1705913824713,-640.07,0.00040273,31]
[312471404,1705913824737,-873.08,0.00040273,31]
[312471405,1705913824764,-529.18,0.00040273,31]
[312471406,1705913824787,-500.0,0.00040273,31]
[312471407,1705913824811,-500.0,0.00040273,31]
[312471408,1705913824835,-1047.38,0.00040273,31]
[312471409,1705913824858,-500.0,0.00040273,31]
[312471410,1705913824882,-500.0,0.00040273,31]
[312471411,1705913824906,-500.0,0.00040273,31]
[312471412,1705913824930,-500.0,0.00040273,31]
[312471413,1705913824954,-564.89,0.00040273,31]
[312471414,1705913824979,-1337.29,0.00040273,31]
[312471415,1705913825004,-500.0,0.00040273,31]
[312471416,1705913825029,-407.72383283,0.00040273,31]
[312471417,1705913825054,-500.0,0.00040273,31]
[312471418,1705913825079,-1126.09,0.00040273,31]
[312471419,1705913825104,-500.0,0.00040273,31]
[312471420,1705913825130,-662.16,0.00040273,31]
[312471421,1705913825155,-500.0,0.00040273,31]
[312471422,1705913825181,-1014.23,0.00040273,31]
[312471423,1705913825207,-1114.79,0.00040273,31]
[312471424,1705913825233,-500.0,0.00040273,31]
[312471425,1705913825261,-500.0,0.00040273,31]
[312471426,1705913825287,-2330.07,0.00040273,31]
[312471427,1705913825313,-500.0,0.00040273,31]
[312471428,1705913825340,-6634.5,0.00040273,31]
[312471429,1705913825367,-949.36,0.00040273,31]
[312471430,1705913825396,-1962.09,0.00040273,31]
[312471431,1705913825422,-500.0,0.00040273,31]
[312471432,1705913825449,-1340.33,0.00040273,31]
[312471433,1705913825475,-2749.12,0.00040273,31]
[312471434,1705913825502,-6849.76,0.00040273,31]
[312471435,1705913825529,-500.0,0.00040273,31]
[312471436,1705913825556,-1551.82,0.00040273,31]
[312471437,1705913825584,-5781.2,0.00040273,31]
[312471438,1705913825611,-2019.03,0.00040273,31]
[312471439,1705913825639,-6915.52,0.00040273,31]
[312471440,1705913825665,-2081.27,0.00040273,31]
[312471441,1705913825692,-539.18,0.00040273,31]
[312471442,1705913825719,-1825.15,0.00040273,31]
[312471443,1705913825747,-741.59,0.00040273,31]
[312471444,1705913825774,-500.0,0.00040273,31]
[312471445,1705913825800,-1295.04,0.00040273,31]
[312471446,1705913825827,-1269.8,0.00040273,31]
[312471447,1705913825853,-500.0,0.00040273,31]
[312471448,1705913825880,-1732.72,0.00040273,31]
[312471449,1705913825904,-150.0,0.00040273,31]
[312471450,1705913825929,-1393.86,0.00040273,31]
[312471451,1705913825954,-1409.98,0.00040273,31]
[312471452,1705913825979,-571.3,0.00040273,31]
[312471453,1705913826004,-500.0,0.00040273,31]
[312471454,1705913826116,-500.0,0.00040273,31]
[312471455,1705913826177,-567.11,0.00040273,31]
[312471456,1705913826204,-638.47,0.00040273,31]
[312471457,1705913826229,-2018.02,0.00040273,31]
[312471458,1705913826255,-2040.77,0.00040273,31]
[312471459,1705913826281,-500.0,0.00040273,31]
[312471460,1705913826305,-500.0,0.00040273,31]
[312471461,1705913826331,-4772.99,0.00040273,31]
[312471462,1705913826355,-1774.13,0.00040273,31]
[312471463,1705913826382,-12295.66589123,0.00040273,31]
[312471464,1705913827288,-500.0,0.0003863,31]
[312471465,1705913827313,-500.0,0.00038904,31]
[312471466,1705913827341,-2015.12410877,0.00040273,31]
[312471467,1705913827366,-604.97,0.00040273,31]
[312471468,1705913827391,-1000.0,0.000403,30]
[312471469,1705913827416,-535.67799766,0.00040547,31]
[312471470,1705913827439,-500.0,0.00040547,31]
[312471471,1705913827463,-500.0,0.00040547,31]
[312471472,1705913827487,-500.0,0.00040547,31]
[312471473,1705913827512,-1114.81,0.00040547,31]
[312471474,1705913827536,-500.0,0.00040547,31]
[312471475,1705913827559,-768.35,0.00040547,31]
[312471476,1705913827583,-640.07,0.00040547,31]
[312471477,1705913827606,-873.08,0.00040547,31]
[312471478,1705913827631,-529.18,0.00040547,31]
[312471479,1705913827655,-500.0,0.00040547,31]
[312471480,1705913827678,-500.0,0.00040547,31]
[312471481,1705913827701,-1047.38,0.00040547,31]
[312471482,1705913827725,-500.0,0.00040547,31]
[312471483,1705913827753,-500.0,0.00040547,31]
[312471484,1705913827778,-500.0,0.00040547,31]
[312471485,1705913827802,-500.0,0.00040547,31]
[312471486,1705913827825,-564.89,0.00040547,31]
[312471487,1705913827849,-1337.29,0.00040547,31]
[312471488,1705913827874,-500.0,0.00040547,31]
[312471489,1705913827899,-500.0,0.00040547,31]
[312471490,1705913827925,-1126.09,0.00040547,31]
[312471491,1705913827951,-500.0,0.00040547,31]
[312471492,1705913827976,-662.16,0.00040547,31]
[312471493,1705913828002,-500.0,0.00040547,31]
[312471494,1705913828027,-1014.23,0.00040547,31]
[312471495,1705913828051,-1114.79,0.00040547,31]
[312471496,1705913828074,-500.0,0.00040547,31]
[312471497,1705913828098,-500.0,0.00040547,31]
[312471498,1705913828121,-2330.07,0.00040547,31]
[312471499,1705913828145,-500.0,0.00040547,31]
[312471500,1705913828170,-6634.5,0.00040547,31]
[312471501,1705913828194,-949.36,0.00040547,31]
[312471502,1705913828218,-1962.09,0.00040547,31]
[312471503,1705913828241,-500.0,0.00040547,31]
[312471504,1705913828267,-1340.33,0.00040547,31]
[312471505,1705913828290,-2749.12,0.00040547,31]
[312471506,1705913828314,-6849.76,0.00040547,31]
[312471507,1705913828338,-500.0,0.00040547,31]
[312471508,1705913828361,-1551.82,0.00040547,31]
[312471509,1705913828385,-5781.2,0.00040547,31]
[312471510,1705913828410,-2019.03,0.00040547,31]
[312471511,1705913828434,-6915.52,0.00040547,31]
[312471512,1705913828457,-2081.27,0.00040547,31]
[312471513,1705913828482,-539.18,0.00040547,31]
[312471514,1705913828507,-1825.15,0.00040547,31]
[312471515,1705913828531,-741.59,0.00040547,31]
[312471516,1705913828556,-500.0,0.00040547,31]
[312471517,1705913828580,-1295.04,0.00040547,31]
[312471518,1705913828604,-1269.8,0.00040547,31]
[312471519,1705913828628,-500.0,0.00040547,31]
[312471520,1705913828653,-1732.72,0.00040547,31]
[312471521,1705913828676,-226.75013316,0.00040547,31]
[312471522,1705913828699,-1393.86,0.00040547,31]
[312471523,1705913828724,-1409.98,0.00040547,31]
[312471524,1705913828752,-571.3,0.00040547,31]
[312471525,1705913828786,-500.0,0.00040547,31]
[312471526,1705913828809,-500.0,0.00040547,31]
[312471527,1705913828833,-567.11,0.00040547,31]
[312471528,1705913828857,-638.47,0.00040547,31]
[312471529,1705913828882,-2018.02,0.00040547,31]
[312471530,1705913828907,-2040.77,0.00040547,31]
[312471531,1705913828931,-500.0,0.00040547,31]
[312471532,1705913828958,-500.0,0.00040547,31]
[312471533,1705913828982,-4772.99,0.00040547,31]
[312471534,1705913829006,-1774.13,0.00040547,31]
[312471535,1705913829030,-14310.79,0.00040547,31]
[312471536,1705913829053,-604.97,0.00040547,31]
[312471537,1705913829077,-151.36107663,0.00040807,30]
[312471538,1705913829101,-500.0,0.00040821,31]
[312471539,1705913829126,-500.0,0.00040821,31]
[312471540,1705913829273,-1114.81,0.00040821,31]
[312471541,1705913829297,-500.0,0.00040821,31]
[312471542,1705913829321,-768.35,0.00040821,31]
[312471543,1705913829344,-873.08,0.00040821,31]
[312471544,1705913829368,-640.07,0.00040821,31]
[312471545,1705913829392,-529.18,0.00040821,31]
[312471546,1705913829415,-500.0,0.00040821,31]
[312471547,1705913829440,-500.0,0.00040821,31]
[312471548,1705913829463,-1047.38,0.00040821,31]
[312471549,1705913829487,-500.0,0.00040821,31]
[312471550,1705913829510,-240.31101063,0.00040821,31]
[312471551,1705913829534,-500.0,0.00040821,31]
[312471552,1705913829557,-500.0,0.00040821,31]
[312471553,1705913829581,-564.89,0.00040821,31]
[312471554,1705913829606,-1337.29,0.00040821,31]
[312471555,1705913829630,-601.19865451,0.00040821,31]
[312471556,1705913829654,-500.0,0.00040821,31]
[312471557,1705913829678,-1126.09,0.00040821,31]
[312471558,1705913829702,-500.0,0.00040821,31]
[312471559,1705913829726,-662.16,0.00040821,31]
[312471560,1705913829754,-500.0,0.00040821,31]
[312471561,1705913829779,-1014.23,0.00040821,31]
[312471562,1705913829803,-1114.79,0.00040821,31]
[312471563,1705913829828,-500.0,0.00040821,31]
[312471564,1705913829853,-500.0,0.00040821,31]
[312471565,1705913829877,-2330.07,0.00040821,31]
[312471566,1705913829901,-500.0,0.00040821,31]
[312471567,1705913829926,-6634.5,0.00040821,31]
[312471568,1705913829951,-949.36,0.00040821,31]
[312471569,1705913829976,-1962.09,0.00040821,31]
[312471570,1705913830000,-500.0,0.00040821,31]
[312471571,1705913830026,-1340.33,0.00040821,31]
[312471572,1705913830050,-2749.12,0.00040821,31]
[312471573,1705913830074,-6849.76,0.00040821,31]
[312471574,1705913830100,-500.0,0.00040821,31]
[312471575,1705913830124,-1551.82,0.00040821,31]
[312471576,1705913830149,-5781.2,0.00040821,31]
[312471577,1705913830174,-2019.03,0.00040821,31]
[312471578,1705913830199,-6915.52,0.00040821,31]
[312471579,1705913830224,-2081.27,0.00040821,31]
[312471580,1705913830251,-539.18,0.00040821,31]
[312471581,1705913830279,-1825.15,0.00040821,31]
[312471582,1705913830304,-741.59,0.00040821,31]
[312471583,1705913830330,-500.0,0.00040821,31]
[312471584,1705913830356,-1295.04,0.00040821,31]
[312471585,1705913830382,-1269.8,0.00040821,31]
[312471586,1705913830408,-500.0,0.00040821,31]
[312471587,1705913830435,-1732.72,0.00040821,31]
[312471588,1705913830462,-1393.86,0.00040821,31]
[312471589,1705913830488,-1409.98,0.00040821,31]
[312471590,1705913830513,-571.3,0.00040821,31]
[312471591,1705913830537,-500.0,0.00040821,31]
[312471592,1705913830561,-500.0,0.00040821,31]
[312471593,1705913830585,-567.11,0.00040821,31]
[312471594,1705913830610,-638.47,0.00040821,31]
[312471595,1705913830636,-2018.02,0.00040821,31]
[312471596,1705913830662,-2040.77,0.00040821,31]
[312471597,1705913830687,-500.0,0.00040821,31]
[312471598,1705913830713,-500.0,0.00040821,31]
[312471599,1705913830739,-4772.99,0.00040821,31]
[312471600,1705913830767,-1774.13,0.00040821,31]
[312471601,1705913830792,-14310.79,0.00040821,31]
[312471602,1705913830818,-604.97,0.00040821,31]
[312471603,1705913830847,-151.36107663,0.00040826,30]
[312471604,1705913830874,-1206.43163887,0.0004093,30]
[312471605,1705913830899,-151.36107663,0.00040947,30]
[312471606,1705913830924,-275.74261843,0.00041,30]
[312471607,1705913830949,-1000.0,0.00041,41]
[312471608,1705913830973,-1000.0,0.00041,41]
[312471609,1705913830998,-500.0,0.00041095,30]
[312471610,1705913831026,-500.0,0.00041095,30]
[312471611,1705913831051,-500.0,0.00041095,30]
[312471612,1705913831074,-500.0,0.00041095,30]
[312471613,1705913831099,-237.41827864,0.00041095,30]
[312471614,1705913831123,-500.0,0.00041095,31]
[312471615,1705913831148,-500.0,0.00041095,31]
[312471616,1705913831171,-500.0,0.00041095,31]
[312471617,1705913831195,-500.0,0.00041095,31]
[312471618,1705913831222,-1114.81,0.00041095,31]
[312471619,1705913831247,-500.0,0.00041095,31]
[312471620,1705913831273,-500.0,0.00041095,31]
[312471621,1705913831298,-500.0,0.00041095,31]
[312471622,1705913831324,-500.0,0.00041095,31]
[312471623,1705913831349,-500.0,0.00041095,31]
[312471624,1705913831374,-500.0,0.00041095,31]
[312471625,1705913831397,-500.0,0.00041095,31]
[312471626,1705913831420,-500.0,0.00041095,31]
[312471627,1705913831445,-500.0,0.00041095,31]
[312471628,1705913831468,-768.35,0.00041095,31]
[312471629,1705913831492,-873.08,0.00041095,31]
[312471630,1705913831516,-640.07,0.00041095,31]
[312471631,1705913831541,-529.18,0.00041095,31]
[312471632,1705913831565,-500.0,0.00041095,31]
[312471633,1705913831589,-533.34740768,0.00041095,31]
[312471634,1705913831613,-1047.38,0.00041095,31]
[312471635,1705913831637,-500.0,0.00041095,31]
[312471636,1705913831776,-500.0,0.00041095,31]
[312471637,1705913831800,-500.0,0.00041095,31]
[312471638,1705913831826,-564.89,0.00041095,31]
[312471639,1705913831851,-1337.29,0.00041095,31]
[312471640,1705913831876,-500.0,0.00041095,31]
[312471641,1705913831902,-1126.09,0.00041095,31]
[312471642,1705913831927,-500.0,0.00041095,31]
[312471643,1705913831953,-662.16,0.00041095,31]
[312471644,1705913831978,-500.0,0.00041095,31]
[312471645,1705913832002,-1014.23,0.00041095,31]
[312471646,1705913832027,-1114.79,0.00041095,31]
[312471647,1705913832052,-645.24954542,0.00041095,31]
[312471648,1705913832077,-500.0,0.00041095,31]
[312471649,1705913832103,-2330.07,0.00041095,31]
[312471650,1705913832127,-500.0,0.00041095,31]
[312471651,1705913832152,-6634.5,0.00041095,31]
[312471652,1705913832177,-949.36,0.00041095,31]
[312471653,1705913832202,-1962.09,0.00041095,31]
[312471654,1705913832228,-500.0,0.00041095,31]
[312471655,1705913832254,-1340.33,0.00041095,31]
[312471656,1705913832279,-2749.12,0.00041095,31]
[312471657,1705913832304,-6849.76,0.00041095,31]
[312471658,1705913832329,-1551.82,0.00041095,31]
[312471659,1705913832354,-500.0,0.00041095,31]
[312471660,1705913832378,-5781.2,0.00041095,31]
[312471661,1705913832403,-2019.03,0.00041095,31]
[312471662,1705913832429,-6915.52,0.00041095,31]
[312471663,1705913832453,-2081.27,0.00041095,31]
[312471664,1705913832478,-539.18,0.00041095,31]
[312471665,1705913832503,-1825.15,0.00041095,31]
[312471666,1705913832527,-500.0,0.00041095,31]
[312471667,1705913832552,-741.59,0.00041095,31]
[312471668,1705913832575,-1295.04,0.00041095,31]
[312471669,1705913832601,-1269.8,0.00041095,31]
[312471670,1705913832625,-500.0,0.00041095,31]
[312471671,1705913832651,-1732.72,0.00041095,31]
[312471672,1705913832675,-1393.86,0.00041095,31]
[312471673,1705913832700,-1409.98,0.00041095,31]
[312471674,1705913832724,-571.3,0.00041095,31]
[312471675,1705913832750,-500.0,0.00041095,31]
[312471676,1705913832777,-567.11,0.00041095,31]
[312471677,1705913832802,-638.47,0.00041095,31]
[312471678,1705913832827,-2018.02,0.00041095,31]
[312471679,1705913832853,-2040.77,0.00041095,31]
[312471680,1705913832878,-500.0,0.00041095,31]
[312471681,1705913832903,-500.0,0.00041095,31]
[312471682,1705913832928,-4772.99,0.00041095,31]
[312471683,1705913832952,-1774.13,0.00041095,31]
[312471684,1705913832978,-14310.79,0.00041095,31]
[312471685,1705913833002,-604.97,0.00041095,31]
[312471686,1705913833028,-20000.0,0.00041234,30]
[312471687,1705913833053,-500.0,0.00041369,31]
[312471688,1705913833078,-500.0,0.00041369,31]
[312471689,1705913833102,-1114.81,0.00041369,31]
[312471690,1705913833127,-500.0,0.00041369,31]
[312471691,1705913833152,-500.0,0.00041369,31]
[312471692,1705913833176,-768.35,0.00041369,31]
[312471693,1705913833200,-873.08,0.00041369,31]
[312471694,1705913833226,-640.07,0.00041369,31]
[312471695,1705913833251,-529.18,0.00041369,31]
[312471696,1705913833275,-500.0,0.00041369,31]
[312471697,1705913833299,-1047.38,0.00041369,31]
[312471698,1705913833322,-500.0,0.00041369,31]
[312471699,1705913833346,-500.0,0.00041369,31]
[312471700,1705913833370,-500.0,0.00041369,31]
[312471701,1705913833395,-564.89,0.00041369,31]
[312471702,1705913833418,-1337.29,0.00041369,31]
[312471703,1705913833442,-500.0,0.00041369,31]
[312471704,1705913833466,-1126.09,0.00041369,31]
[312471705,1705913833489,-500.0,0.00041369,31]
[312471706,1705913833514,-662.16,0.00041369,31]
[312471707,1705913833538,-500.0,0.00041369,31]
[312471708,1705913833562,-1014.23,0.00041369,31]
[312471709,1705913833585,-1114.79,0.00041369,31]
[312471710,1705913833609,-500.0,0.00041369,31]
[312471711,1705913833634,-2330.07,0.00041369,31]
[312471712,1705913833658,-500.0,0.00041369,31]
[312471713,1705913833682,-6634.5,0.00041369,31]
[312471714,1705913833706,-949.36,0.00041369,31]
[312471715,1705913833730,-1962.09,0.00041369,31]
[312471716,1705913833762,-500.0,0.00041369,31]
[312471717,1705913833788,-1340.33,0.00041369,31]
[312471718,1705913833812,-2749.12,0.00041369,31]
[312471719,1705913833836,-6849.76,0.00041369,31]
[312471720,1705913833861,-1551.82,0.00041369,31]
[312471721,1705913833885,-500.0,0.00041369,31]
[312471722,1705913833911,-5781.2,0.00041369,31]
[312471723,1705913833937,-2019.03,0.00041369,31]
[312471724,1705913833961,-6915.52,0.00041369,31]
[312471725,1705913833986,-2081.27,0.00041369,31]
[312471726,1705913834012,-539.18,0.00041369,31]
[312471727,1705913834037,-1825.15,0.00041369,31]
[312471728,1705913834158,-741.59,0.00041369,31]
[312471729,1705913834184,-500.0,0.00041369,31]
[312471730,1705913834209,-1295.04,0.00041369,31]
[312471731,1705913834235,-1269.8,0.00041369,31]
[312471732,1705913834261,-500.0,0.00041369,31]
[312471733,1705913834286,-1732.72,0.00041369,31]
[312471734,1705913834310,-1393.86,0.00041369,31]
[312471735,1705913834335,-1409.98,0.00041369,31]
[312471736,1705913834360,-571.3,0.00041369,31]
[312471737,1705913834384,-500.0,0.00041369,31]
[312471738,1705913834408,-567.11,0.00041369,31]
[312471739,1705913834432,-638.47,0.00041369,31]
[312471740,1705913834456,-2018.02,0.00041369,31]
[312471741,1705913834481,-2040.77,0.00041369,31]
[312471742,1705913834505,-500.0,0.00041369,31]
[312471743,1705913834531,-500.0,0.00041369,31]
[312471744,1705913834556,-4772.99,0.00041369,31]
[312471745,1705913834580,-1774.13,0.00041369,31]
[312471746,1705913834604,-14310.79,0.00041369,31]
[312471747,1705913834628,-604.97,0.00041369,31]
[312471748,1705913834652,-189.27438636,0.000414,45]
[312471749,1705913834675,-278.0,0.00041425,90]
[312471750,1705913834700,-151.36107663,0.00041458,30]
[312471751,1705913834723,-1208.7496,0.00041594,30]
[312471752,1705913834747,-500.0,0.00041643,31]
[312471753,1705913834772,-500.0,0.00041643,31]
[312471754,1705913834797,-1114.81,0.00041643,31]
[312471755,1705913834822,-500.0,0.00041643,31]
[312471756,1705913834847,-487.4492228,0.00041643,31]
[312471757,1705913834871,-768.35,0.00041643,31]
[312471758,1705913834893,-873.08,0.00041643,31]
[312471759,1705913834917,-640.07,0.00041643,31]
[312471760,1705913834944,-529.18,0.00041643,31]
[312471761,1705913834970,-500.0,0.00041643,31]
[312471762,1705913834994,-1047.38,0.00041643,31]
[312471763,1705913835018,-500.0,0.00041643,31]
[312471764,1705913835042,-500.0,0.00041643,31]
[312471765,1705913835066,-500.0,0.00041643,31]
[312471766,1705913835091,-564.89,0.00041643,31]
[312471767,1705913835115,-1337.29,0.00041643,31]
[312471768,1705913835139,-500.0,0.00041643,31]
[312471769,1705913835164,-1126.09,0.00041643,31]
[312471770,1705913835188,-500.0,0.00041643,31]
[312471771,1705913835213,-662.16,0.00041643,31]
[312471772,1705913835237,-500.0,0.00041643,31]
[312471773,1705913835262,-1014.23,0.00041643,31]
[312471774,1705913835287,-1114.79,0.00041643,31]
[312471775,1705913835312,-500.0,0.00041643,31]
[312471776,1705913835337,-2330.07,0.00041643,31]
[312471777,1705913835363,-500.0,0.00041643,31]
[312471778,1705913835389,-6634.5,0.00041643,31]
[312471779,1705913835415,-949.36,0.00041643,31]
[312471780,1705913835441,-1962.09,0.00041643,31]
[312471781,1705913835467,-500.0,0.00041643,31]
[312471782,1705913835493,-1340.33,0.00041643,31]
[312471783,1705913835516,-2749.12,0.00041643,31]
[312471784,1705913835541,-6849.76,0.00041643,31]
[312471785,1705913835566,-1551.82,0.00041643,31]
[312471786,1705913835589,-500.0,0.00041643,31]
[312471787,1705913835615,-5781.2,0.00041643,31]
[312471788,1705913835639,-2019.03,0.00041643,31]
[312471789,1705913835663,-6915.52,0.00041643,31]
[312471790,1705913835687,-1384.70109055,0.00041643,31]
[312471791,1705913836117,-500.0,0.00039178,31]
[312471792,1705913836143,-500.0,0.00039452,31]
[312471793,1705913836167,-154.81422293,0.00039452,30]
[312471794,1705913836192,-500.0,0.00039726,31]
[312471795,1705913836217,-500.0,0.0004,31]
[312471796,1705913836241,-500.0,0.00040273,31]
[312471797,1705913836265,-500.0,0.00040547,31]
[312471798,1705913836289,-500.0,0.00040821,31]
[312471799,1705913836313,-500.0,0.00041095,31]
[312471800,1705913836338,-323.445445,0.00041369,31]
[312471801,1705913836362,-696.56890945,0.00041643,31]
[312471802,1705913836479,-539.18,0.00041643,31]
[312471803,1705913836503,-1825.15,0.00041643,31]
[312471804,1705913836528,-741.59,0.00041643,31]
[312471805,1705913836553,-500.0,0.00041643,31]
[312471806,1705913836579,-1295.04,0.00041643,31]
[312471807,1705913836604,-1269.8,0.00041643,31]
[312471808,1705913836628,-500.0,0.00041643,31]
[312471809,1705913836653,-1732.72,0.00041643,31]
[312471810,1705913836678,-1393.86,0.00041643,31]
[312471811,1705913836702,-1409.98,0.00041643,31]
[312471812,1705913836725,-571.3,0.00041643,31]
[312471813,1705913836751,-500.0,0.00041643,31]
[312471814,1705913836775,-567.11,0.00041643,31]
[312471815,1705913836800,-638.47,0.00041643,31]
[312471816,1705913836825,-2018.02,0.00041643,31]
[312471817,1705913836850,-2040.77,0.00041643,31]
[312471818,1705913836875,-500.0,0.00041643,31]
[312471819,1705913836900,-518.20579275,0.00041643,31]
[312471820,1705913836926,-4772.99,0.00041643,31]
[312471821,1705913836950,-1774.13,0.00041643,31]
[312471822,1705913836976,-14310.79,0.00041643,31]
[312471823,1705913837001,-604.97,0.00041643,31]
[312471824,1705913837025,-151.36107663,0.00041845,30]
[312471825,1705913837051,-500.0,0.00041917,31]
[312471826,1705913837076,-500.0,0.00041917,31]
[312471827,1705913837101,-1114.81,0.00041917,31]
[312471828,1705913837125,-500.0,0.00041917,31]
[312471829,1705913837150,-768.35,0.00041917,31]
[312471830,1705913837175,-873.08,0.00041917,31]
[312471831,1705913837201,-640.07,0.00041917,31]
[312471832,1705913837226,-529.18,0.00041917,31]